Cogmind - Beta 12 @@@ ROGUE MODE // 2023.06.09 @ 10:43:02 Player: Mr Goldstein Result: Destroyed by D-53 Grenadier with Mini Grenade Launcher Performance ------------- Evolutions (0) 0 Regions Visited (2) 400 Robots Destroyed (43) 215 Value Destroyed (908) 908 Prototype IDs (4) 80 Alien Tech Used (0) 0 Bonus (230) 230 TOTAL SCORE: 1833 Bonus ------- High Alert Combat Kills 230 Cogmind --------- Core Integrity 0/250 Matter 299/300 Energy 100/100 System Corruption 0% Temperature Cool (0) Movement Core (700) Ox13 Location -10/Mines Parts ------- > --- POWER (1) -------- (None) > --- PROPULSION (2) --- (None) > --- UTILITY (2) ------ High-capacity Storage Unit Weapon Shielding > --- WEAPON (2) ------- Light Assault Rifle > --- INVENTORY (20) --- Light Ion Engine Wheel Compact Wheel Heat Sink Heat Sink High-capacity Matter Pod (200) High-capacity Matter Pod (200) Signal Interpreter Seismic Detector Hacking Suite Tractor Beam Assault Rifle Assault Rifle Light Assault Rifle Light Assault Rifle Light Cannon Grenade Launcher Grenade Launcher Datajack Peak State ------------ > --- POWER ------------ Ion Engine > --- PROPULSION ------- Wheel Compact Wheel > --- UTILITY ---------- High-capacity Storage Unit Structural Scanner > --- WEAPON ----------- Assault Rifle Light Assault Rifle > --- INVENTORY -------- Light Ion Engine Wheel Compact Wheel Heat Sink Heat Sink High-capacity Matter Pod High-capacity Matter Pod Signal Interpreter Seismic Detector Hacking Suite Tractor Beam Assault Rifle Light Assault Rifle Light Assault Rifle Light Assault Rifle Light Cannon Grenade Launcher Grenade Launcher Datajack [Rating: 9] Favorites ----------- Power Ion Engine Engine Ion Engine Propulsion Compact Wheel Wheel Compact Wheel Utility High-capacity Storage Unit Device Seismic Detector Storage High-capacity Storage Unit Protection Weapon Shielding Weapon Assault Rifle Ballistic Gun Assault Rifle Launcher Grenade Launcher Build | -11 -10 -10 ------- Run | Jun Mat Min Slots Evolved . | . . . Power . | . . . Propulsion . | . . . Utility . | . . . Weapon . | . . . Parts Attached 29 | 7 21 1 Power 3 | 2 1 . Engine 3 | 2 1 . Core . | . . . Reactor . | . . . Propulsion 7 | 2 5 . Treads . | . . . Leg . | . . . Wheel 7 | 2 5 . Hover . | . . . Flight . | . . . Utility 7 | 1 6 . Device 3 | . 3 . Storage 3 | 1 2 . Processor . | . . . Hackware . | . . . Protection 1 | . 1 . Artifact . | . . . Weapon 12 | 2 9 1 Energy Gun . | . . . Energy Cannon . | . . . Ballistic Gun 7 | 2 4 1 Ballistic Cannon . | . . . Launcher 5 | . 5 . Special Weapon . | . . . Impact Weapon . | . . . Slashing Weapon . | . . . Piercing Weapon . | . . . Special Melee Weapon . | . . . Unidentified Prototypes . | . . . Parts Lost 10 | . 6 4 Power 2 | . 1 1 Propulsion 5 | . 3 2 Utility 2 | . 2 . Weapon 1 | . . 1 Highest Loss Streak 4 | . 2 4 To Critical Strikes . | . . . Average Slot Usage (%) 96 | . 96 99 Engine 13 | . 14 13 Wheel 27 | . 27 28 Device 4 | . 4 . Storage 13 | . 13 14 Protection 6 | . 5 14 Ballistic Gun 25 | . 26 14 Launcher 2 | . 1 14 Naked Turns . | . . . Heaviest Build 52 | 14 52 50 Greatest Support 26 | 26 26 26 Greatest Overweight (x) 4 | 3 4 2 Average Overweight (x) . | . . 1 Largest Inventory Capacity 20 | 8 20 20 Average Capacity 19 | 7 19 20 Most Carried 19 | 1 19 19 Average Carried 14 | . 14 19 Final Capacity 20 | 8 20 20 Final Carried 19 | 1 19 19 Class Distribution -------------------- 71% | Mutant 28% | Scavenger-Mutant Dominant Class ---------------- Mutant | -10/Materials Scavenger-Mutant | -10/Mines Resources | -11 -10 -10 ----------- Run | Jun Mat Min Matter Collected 1531 | 266 1255 10 Remotely . | . . . Salvage Created 1687 | . 1687 . Parts 113 | . 113 . Haulers Intercepted 2 | . 2 . Recyclers Shooed 3 | . 3 . Parts Field Recycled . | . . . Retrieved Matter . | . . . Parts Self-Destructed . | . . . Prevented . | . . . Kills | -11 -10 -10 ------- Run | Jun Mat Min Combat Hostiles Destroyed 37 | . 37 . Guns 31 | . 31 . AOE 6 | . 6 . Classes Destroyed 8 | . 8 . Worker 3 | . 3 . Hauler 2 | . 2 . Recycler 4 | . 4 . Mechanic 1 | . 1 . Operator 1 | . 1 . Watcher 3 | . 3 . Swarmer 9 | . 9 . Grunt 28 | . 28 . Best Kill Streak 5 | . 5 . Combat Bots Only 4 | . 4 . Max Kills in Single Turn 3 | . 3 . Gunslinging . | . . . Exploded 1 | . 1 . Melee . | . . . Uniques/NPCs Destroyed . | . . . Combat | -11 -10 -10 -------- Run | Jun Mat Min Damage Taken 1099 | . 745 354 Core 253 | . 113 140 Absorbed by Shields . | . . . Redirected to Shielding 46 | . 30 16 Regen/Repaired (Parts) 215 | . 215 . Core Remaining (%) 100 | 100 . . Volleys Fired 131 | . 129 2 Largest 2 | . 2 2 Hottest 60 | . 60 40 Shots Fired 258 | . 255 3 Gun 247 | . 244 3 Cannon . | . . . Launcher 11 | . 11 . Special . | . . . Kinetic 247 | . 244 3 Thermal . | . . . Explosive 11 | . 11 . Electromagnetic . | . . . Robot Hit Streak 19 | . 19 1 Robot Miss Streak 5 | . 5 1 Penetration Max . | . . . Secondary Targets 1 | . 1 . Max Gunslinging Chain 1 | . 1 . Shots Hit Robots 150 | . 149 1 Core Hits 82 | . 82 . Critical Kills 1 | . 1 . Critical Parts Destroyed . | . . . Critical Strikes 1 | . 1 . Destroy 1 | . 1 . Melee Attacks . | . . . Impact . | . . . Slashing . | . . . Piercing . | . . . Sneak Attacks . | . . . Combat Hostiles . | . . . Follow-up Attacks . | . . . Damage Inflicted 2176 | . 2167 9 Guns 1692 | . 1683 9 Cannons . | . . . Explosions 484 | . 484 . Melee . | . . . Ramming . | . . . Kinetic 1692 | . 1683 9 Thermal . | . . . Explosive 484 | . 484 . Electromagnetic . | . . . Impact . | . . . Slashing . | . . . Piercing . | . . . Highest Corruption . | . . . Average Corruption . | . . . Corruption Purged . | . . . Corruption Blocked . | . . . Overload Shots . | . . . Overflow Damage 10 | . 10 . Projectiles . | . . . Explosions 10 | . 10 . Melee . | . . . Knockbacks . | . . . Impact . | . . . Kinetic . | . . . Secondary . | . . . Self-Inflicted Damage 31 | . 31 . Shots 1 | . 1 . Rammed . | . . . Targets Rammed . | . . . Kicked . | . . . Crushed . | . . . Highest Temperature 12 | . 12 . Average Temperature 7 | . 7 . Received Heat Transfer 270 | . 270 . Siege Activations . | . . . Robots Corrupted . | . . . Combat Hostiles . | . . . Parts Fried . | . . . Impact Corruptions . | . . . Robots Melted . | . . . Combat Hostiles . | . . . Parts Melted . | . . . Heat Transferred . | . . . Parts Sabotaged . | . . . Parts Stolen . | . . . Parts Stripped . | . . . Power Chain Reactions . | . . . Missiles Intercepted . | . . . Alert | -11 -10 -10 ------- Run | Jun Mat Min Peak Influence 855 | . 855 333 Initial 333 | . . 333 Average 398 | . 416 332 Maximum Alert Level 3 | . 3 1 Low Security (%) 13 | 100 13 . Level 1 42 | . 34 100 Level 2 36 | . 42 . Level 3 8 | . 9 . Level 4 . | . . . Level 5 . | . . . High Security . | . . . Max Security . | . . . Squads Dispatched 11 | . 11 . Investigation 9 | . 9 . Extermination . | . . . Reinforcement 2 | . 2 . Assault . | . . . Garrison . | . . . Intercept . | . . . Searches Triggered . | . . . Construction Impeded . | . . . Haulers Reinforced . | . . . Active Scanning Responses . | . . . Cargo Convoy Interrupts . | . . . Stealth | -11 -10 -10 --------- Run | Jun Mat Min Distress Signals 2 | . 2 . Communications Jammed . | . . . Distress Signals . | . . . Times Spotted 58 | . 56 2 Peak Tracking Total 6 | . 6 2 Tactical Retreats 5 | . 5 . Traps | -11 -10 -10 ------- Run | Jun Mat Min Traps Triggered 3 | . 3 . Indirectly . | . . . Trap Hack Attempts . | . . . Triggered . | . . . Disarmed . | . . . Reprogrammed . | . . . Reused . | . . . Traps Extracted . | . . . Installed . | . . . Triggered . | . . . Machines | -11 -10 -10 ---------- Run | Jun Mat Min Machines Disabled 3 | . 3 . Max in Single Turn 1 | . 1 . Machines Repaired . | . . . Machines Sabotaged . | . . . Overloaded Fab Kills . | . . . Hacking | -11 -10 -10 --------- Run | Jun Mat Min Machines Accessed 10 | . 10 . Terminals 7 | . 7 . Fabricators . | . . . Repair Stations 1 | . 1 . Recycling Units 2 | . 2 . Scanalyzers . | . . . Garrison Access . | . . . Total Hacks 30 | . 30 . Successful 19 | . 19 . Failed 11 | . 11 . Catastrophic 4 | . 4 . Database Lockouts . | . . . Manual 17 | . 17 . Terminals 20 | . 20 . Fabricators . | . . . Repair Stations 7 | . 7 . Recycling Units 3 | . 3 . Scanalyzers . | . . . Garrison Access . | . . . Terminal Hacks 6 | . 6 . Robot Analysis 3 | . 3 . Prototype ID Bank 3 | . 3 . Fabricator Hacks . | . . . Repair Station Hacks 4 | . 4 . Scan Component 2 | . 2 . Repair 1 | . 1 . Refit 1 | . 1 . Recycling Unit Hacks . | . . . Scanalyzer . | . . . Garrison Access Hacks . | . . . Unauthorized Hacks 9 | . 9 . Terminals 7 | . 7 . Disrupt 3 | . 3 . Search 4 | . 4 . Fabricators . | . . . Repair Stations . | . . . Recycling Units 2 | . 2 . Tunnel 2 | . 2 . Scanalyzers . | . . . Garrison Access . | . . . Data Cores Recovered . | . . . Used . | . . . Hacking Detections 5 | . 5 . Full Trace Events 3 | . 3 . Feedback Events . | . . . Feedback Blocked . | . . . Robot Schematics Acquired . | . . . Robots Built . | . . . Authchips . | . . . Time . | . . . Total Robot Build Rating . | . . . Part Schematics Acquired . | . . . Parts Built . | . . . Authchips . | . . . Time . | . . . Total Part Build Rating . | . . . Parts Repaired 1 | . 1 . Time 26 | . 26 . Parts Recycled . | . . . Recycled Matter . | . . . Retrieved Matter . | . . . Retrieved Components . | . . . Parts Scanalyzed . | . . . Part Schematics Acquired . | . . . Parts Damaged . | . . . Bothacking | -11 -10 -10 ------------ Run | Jun Mat Min Used RIF Installer . | . . . Robots Hacked . | . . . Non-combat . | . . . Combat . | . . . Robot Hacks Applied . | . . . Relay Couplers Released . | . . . Fabnet Peak Effective % . | . . . Robots Rewired . | . . . Allies Hacked . | . . . Hacks Repelled . | . . . Allies | -11 -10 -10 -------- Run | Jun Mat Min Total Allies . | . . . Largest Group . | . . . Highest-Rated Group . | . . . Highest-Rated Ally . | . . . Total Orders . | . . . Ally Attacks . | . . . Total Damage . | . . . Kills . | . . . Allies Corrupted . | . . . Allies Melted . | . . . Intel | -11 -10 -10 ------- Run | Jun Mat Min Robot Analysis Total 3 | . 3 . Derelict Logs Recovered . | . . . Drone Launches . | . . . Drone Recoveries . | . . . Exploration | -11 -10 -10 ------------- Run | Jun Mat Min Turns Passed 2197 | 42 1878 277 Spaces Moved 1355 | 34 1082 239 Core 7 | 7 . . Treads . | . . . Legs . | . . . Wheels 1348 | 27 1082 239 Hover . | . . . Flight . | . . . Fastest Speed 50 | 50 90 105 Average Speed 104 | 94 104 105 Slowest Speed 200 | 200 145 130 Overloaded Moves . | . . . Propulsion Burnouts . | . . . Robots Hopped . | . . . Cave-ins Triggered . | . . . Exploration Rate (%) 48 | 3 99 43 Regions Visited 2 Branch Regions 1 Pre-discovered Areas 2 | . 2 . Known Exits Taken . | . . . Unknown Exits Taken 2 | 1 1 . Scrap Searched 1 | . . 1 Spaces Dug 25 | . 25 . Terrain Destroyed 43 | . 43 . Melee . | . . . Projectile . | . . . AOE 43 | . 43 . Terrain Rammed . | . . . Walls Destroyed . | . . . Machines Disabled . | . . . Actions | -11 -10 -10 --------- Run | Jun Mat Min Total 1887 | 40 1585 262 Wait 353 | . 333 20 Move 1353 | 33 1081 239 Hop . | . . . Pick Up 19 | . 19 . Fast Attach 11 | 6 5 . Attach 4 | . 4 . Detach 1 | . 1 . Swap 14 | 1 12 1 Drop 1 | . 1 . Fire 131 | . 129 2 Melee . | . . . Ram . | . . . Kick . | . . . Crush . | . . . Escape Stasis . | . . . Rewire . | . . . Trap . | . . . Miscellaneous . | . . . Route ------- -11/Junkyard -10/Materials (discovered 5 exits: [*Mat x3] / [*Min x2]) -10/Mines History --------- Turn | Location | Event 2 | -11/Junkyard | Met Revision 17 26 | -11/Junkyard | Discovered new exit (range 16) 43 | -11/Junkyard | Entered Materials 197 | -10/Materials | Repaired Hcp. Storage Unit 230 | -10/Materials | Discovered new exit (range 16) 313 | -10/Materials | Build established: Mutant 653 | -10/Materials | Discovered new exit (range 12) 795 | -10/Materials | Discovered new exit (range 8) 1099 | -10/Materials | Discovered new exit (range 3) 1178 | -10/Materials | Discovered new exit (range 10) 1863 | -10/Materials | Build established: Scavenger-Mutant 1921 | -10/Materials | Entered Mines 1933 | -10/Mines | Met a Derelict bent on vengeance 2059 | -10/Mines | Assembled infested the area 2190 | -10/Mines | Core integrity fell below 50% 2197 | -10/Mines | Core integrity fell below 20% 2198 | -10/Mines | Destroyed by D-53 Grenadier with Mini Grenade Launcher Last Messages --------------- 01865_ Acquired 12 matter. LOCATION=UNKNOWN GOAL=ESCAPE Something is scanning the area. 01957_ Searching scrap... 01957_ Found Terrain Scanner. 01957_ Found Mining Laser. 01957_ Found 23 Matter. 01958_ Acquired 10 matter. 02047_ K-01 Serf collects debris. 02059_ ALERT: Infestation in the mines, dispatching Demolisher response squad. 02083_ K-01 Serf collects debris. 02132_ T-07 Excavator is excavating. 02189_ Ion Engine destroyed. 02194_ Wheel destroyed. 02194_ Lgt. Assault Rifle destroyed. 02196_ The unstable cave ceiling collapses. 02196_ D-53 Grenadier destroyed. 02196_ Com. Wheel destroyed. Map ----- +----------------------------------------------------+ | ?????????????????????????????????????????????????? | | #????????????????????????????????????????????????? | | #????????????????????????????????????????????????? | | #????????????????????????????????????????????????? | | ##???????????????????????????????????????????????? | | ##??????????????????????###?????????????????????? | | #??????????????????????# ##???????????????????? | | #???????????####??????## ##??????????????????? | | #??????????## ##?????# ##?????????????????? | | #?????????## #?????# ##????????????????? | | ##????????# #??????# #????????????????? | | #???????## ##?????# #????????????????? | | #??????## #??????# #????????????????? | | ######## ##????## #????????????????? | | ###### ##????????????????? | | ## ####?????????????????? | | ########## ##???????????????????## | | ###????????# ##???????????????????? | | ???????????## #????????????????????? | | ????????????## ### ##?????????????????????# | | ????####?????# ##?# ###????????????????????# | | ???## ##?#### #### ###??????????????????# | | ## ### ## ##?????????????????# | | # #??????############ | | #??????# | | ######## @ ###?????# ########## | | ####??????## ##### ##????# #????????# | | ???????????######??# d ###### #????????# | | ???????????????????## #????????# | | ????????????????????### ########????????# | | ??????????????????????# ##?????#####?????# | | ??????????????????????# ##??????# #?????# | | ?????????????????????# ##???????# ##????# | | ???????????????????? """ ##????????# ###### | | ?????????????????? """ ##????????## | | ?????????????????? """ #????????## ###### | | ?????????????????? ## """ ??####### ##???? | | ????????????????????## ? t ??# ##??? | | ??????????????????????? #??# ##### #??? | | ??????????????????????# ? #??# #???## ##?? | | ??????????????????????# #### ###??## ##? | | ??????????????????????# #??## ## ## | | ?????????????????????# #??# ## # | | ?????????????????????# ##### #### ### # | | ?????????????????????## ?????#% ##?# # | | ??????????????????????##???????#|! #??# ### | | ???????????????????????????????#########??# ##?? | | ??????????????????????????????????????????# ##?? | | ??????????????????????????????????????????## ##? | | ???????????????????????????????????????????## #? | +----------------------------------------------------+ Best States ------------- Heat Dissipation 25 Energy Generation 10 Energy Capacity 250 Matter Stores 300 Matter Capacity 300 Sight Range 16 Terrain Scan Density 10 Armor Coverage 80 Weapon Shielding 33 Evasion (%) 42 Item Schematics ----------------- None Robot Schematics ------------------ None Fabricated ------------ Nothing Alien Tech Used ----------------- None Achievements -------------- None Challenges ------------ None Game ------ Seed GravmagProcessingStripper Manual? 0 Play Time 00:15:51 Cumulative 283.6 hours Start 2023.06.09 @ 10:20:00 End 2023.06.09 @ 10:43:02 Sessions 1 Manual Loads 0 Difficulty Rogue Special Mode None Game No. 834 Rogue 834 Adventurer 0 Explorer 0 Win Type - Total 17 Types 8/0/7/2/0/0/0/0/0 Lore% 90 Gallery% 87 Achievement% 79 Wizard Run 0 Options --------- ASCII 0 Keyboard 0 Movement Mouse Keybinds 0 Fullscreen 1 Font 16/SmallcapsGlow Map View 75x55 Tactical HUD 1 Map Filters NONE Filters NONE Steam 1 RUN: fa5721aa-3a32-4af8-a2ed-55a461aca066